bitfinex-derivatives/quotes_SOLF0:USTF0_20250817
["timestamp","ask_amount","ask_price","bid_price","bid_amount"]
[1755395441466,7.97415738,188.32,188.23,8.2591]
[1755395441665,8.78007647,188.35,188.23,8.2591]
[1755395441666,2.99,188.3,188.24,2.95]
[1755395441868,4.07251918,188.29,188.24,2.95]
[1755395442065,2.99,188.26,188.25,8.2585]
[1755395442266,2.12,188.33,188.23,1.99473115]
[1755395442467,2.99,188.31,188.24,2.95]
[1755395442767,2.99,188.29,188.25,8.2584]
[1755395443070,2.99,188.26,188.25,8.2584]
[1755395449474,3.0,188.29,188.25,2.95]
[1755395449680,3.0,188.31,188.28,2.81]
[1755395449876,4.08304264,188.3,188.28,2.81]
[1755395450068,3.0,188.31,188.29,5.3072]
[1755395450272,3.0,188.31,188.27,1.99473115]
[1755395450273,5.12,188.31,188.27,1.99473115]
[1755395450772,5.12,188.31,188.28,2.81]
[1755395451178,3.0,188.33,188.32,2.81]
[1755395451379,7.08353961,188.33,188.32,2.81]
[1755395451877,4.08353961,188.33,188.32,8.1166]
[1755395452077,3.0,188.35,188.32,2.81]
[1755395452277,4.08301011,188.34,188.33,1.99473115]
[1755395452476,4.08301011,188.34,188.33,4.80473115]
[1755395452681,4.08301011,188.34,188.33,10.11073115]
[1755395454078,3.0,188.35,188.34,5.306]
[1755395454274,7.08371282,188.35,188.34,8.116]
[1755395454980,4.08371282,188.35,188.34,8.116]
[1755395455378,4.08371282,188.36,188.34,8.116]
[1755395455572,4.08371282,188.35,188.34,8.116]
[1755395455779,7.08371282,188.35,188.34,8.116]
[1755395458481,3.0,188.34,188.33,1.99473115]
[1755395458681,4.09091042,188.34,188.31,2.81]
[1755395458883,3.0,188.33,188.31,2.81]
[1755395459081,3.0,188.33,188.3,1.99473115]
[1755395459281,3.0,188.33,188.3,4.80473115]
[1755395460385,3.0,188.31,188.27,4.80473115]
[1755395460776,4.09716998,188.3,188.27,4.80473115]
[1755395461081,3.0,188.3,188.27,4.80473115]
[1755395461777,2.12,188.31,188.28,2.81]
[1755395461778,3.0,188.29,188.28,2.81]
[1755395461984,5.12,188.31,188.27,1.99473115]
[1755395462179,3.0,188.37,188.3,2.81]
[1755395462485,5.85415738,188.38,188.31,2.81]
[1755395462486,3.0,188.35,188.31,2.81]
[1755395462786,3.0,188.33,188.3,1.99473115]
[1755395462979,3.0,188.31,188.27,4.80473115]
[1755395463184,4.10270434,188.3,188.29,5.3073]
[1755395463378,8.78007647,188.4,188.29,5.3073]
[1755395463379,3.0,188.35,188.3,2.81]
[1755395463579,7.104063,188.34,188.33,2.81]
[1755395463779,7.104063,188.34,188.33,8.1163]
[1755395464982,4.104063,188.34,188.33,8.1163]
[1755395465183,7.104063,188.34,188.33,8.1163]
[1755395466180,4.104063,188.34,188.33,8.1163]
[1755395466384,7.104063,188.34,188.33,5.3063]
[1755395468386,3.0,188.34,188.33,5.3063]
[1755395468686,7.10146367,188.34,188.33,5.3063]
[1755395469081,3.0,188.34,188.33,5.3063]
[1755395470189,7.10101125,188.34,188.33,5.3063]
[1755395470989,3.0,188.34,188.33,5.3063]
[1755395471384,3.0,188.33,188.29,4.80473115]
[1755395471691,3.0,188.33,188.29,1.99473115]
[1755395471888,3.0,188.31,188.3,5.3069]
[1755395472991,3.0,188.31,188.3,8.1169]
[1755395474094,5.85415738,188.4,188.31,5.3067]
[1755395474295,3.0,188.38,188.32,1.99473115]
[1755395474496,3.0,188.36,188.33,2.81]
[1755395474695,3.0,188.36,188.35,10.11023115]
[1755395477593,2.84,188.39,188.35,4.80473115]
[1755395477787,0.92402055,188.46,188.35,4.80473115]
[1755395477788,4.09863345,188.38,188.35,1.99473115]
[1755395477995,2.84,188.39,188.36,2.96]
[1755395478394,137.75415738,188.47,188.35,1.99473115]
[1755395478600,2.84,188.45,188.35,1.99473115]
[1755395478797,2.84,188.43,188.35,1.99473115]
[1755395478997,2.84,188.41,188.35,1.99473115]
[1755395479198,2.84,188.39,188.36,5.3054]
[1755395480598,4.96,188.39,188.35,1.99473115]
[1755395480803,2.84,188.38,188.35,1.99473115]
[1755395481199,4.96,188.38,188.35,1.99473115]
[1755395481403,2.84,188.37,188.35,1.99473115]
[1755395482302,2.84,188.37,188.35,7.30043115]
[1755395482904,2.12,188.38,188.35,7.30043115]
[1755395483204,2.84,188.36,188.35,7.30043115]
[1755395483804,140.67282322,188.47,188.36,5.3053]
[1755395483805,2.84,188.46,188.36,5.3053]
[1755395484001,4.09063901,188.45,188.36,5.3053]
[1755395484201,4.09063901,188.44,188.36,5.3053]
[1755395484403,2.84,188.42,188.35,10.26043115]
[1755395484601,2.84,188.4,188.35,7.30043115]
[1755395485205,2.84,188.4,188.35,10.26043115]
[1755395485405,2.84,188.38,188.35,10.26043115]
[1755395486105,2.84,188.36,188.34,5.3059]
[1755395486606,2.84,188.35,188.32,7.30103115]
[1755395487102,2.84,188.33,188.3,2.96]
[1755395487496,2.84,188.33,188.3,8.267]
[1755395491605,2.84,188.33,188.29,8.2673]
[1755395491805,2.84,188.31,188.28,1.99473115]
[1755395492203,2.84,188.31,188.28,10.26223115]
[1755395492808,5.85415738,188.4,188.29,5.3073]
[1755395493002,2.84,188.38,188.28,1.99473115]
[1755395493209,2.84,188.36,188.29,2.96]
[1755395493409,2.84,188.34,188.3,5.3071]
[1755395493609,5.85415738,188.4,188.3,5.3071]
[1755395493610,2.84,188.32,188.3,5.3071]
[1755395493810,2.84,188.32,188.27,4.95473115]
[1755395494006,2.84,188.32,188.28,8.2675]
[1755395494203,2.84,188.3,188.28,8.2675]
[1755395494415,2.84,188.3,188.27,1.99473115]
[1755395494606,2.84,188.3,188.27,4.95473115]
[1755395494804,2.84,188.3,188.27,10.26243115]
[1755395495010,2.84,188.38,188.27,4.95473115]
[1755395495212,2.84,188.36,188.28,2.96]
[1755395495514,2.84,188.34,188.28,2.96]
[1755395495714,2.84,188.32,188.29,2.96]
[1755395496313,2.84,188.32,188.29,8.2673]
[1755395497012,2.84,188.3,188.27,8.2677]
[1755395497505,2.84,188.28,188.27,5.3077]
[1755395497709,2.84,188.28,188.26,5.3082]
[1755395497914,2.84,188.34,188.25,2.96]
[1755395498114,2.84,188.32,188.25,2.96]
[1755395498415,2.84,188.3,188.26,2.96]
[1755395498611,4.10664186,188.29,188.26,2.96]
[1755395498817,2.84,188.27,188.26,8.2682]
[1755395499117,2.84,188.27,188.26,2.96]
[1755395500515,2.84,188.26,188.24,1.99473115]
[1755395500716,2.84,188.25,188.24,1.99473115]
[1755395501114,2.84,188.25,188.24,4.95473115]
[1755395502314,2.84,188.34,188.25,2.96]
[1755395502515,2.84,188.32,188.25,2.96]
[1755395502815,2.84,188.3,188.25,8.2683]
[1755395503017,2.84,188.33,188.26,2.96]
[1755395503216,2.84,188.31,188.26,2.96]
[1755395503418,2.84,188.29,188.26,2.96]
[1755395504121,2.84,188.31,188.27,1.99473115]
[1755395504311,2.84,188.31,188.28,2.96]
[1755395504718,5.85415738,188.38,188.28,2.96]
[1755395504918,2.84,188.32,188.28,2.96]
[1755395505420,2.84,188.38,188.28,2.96]
[1755395505610,2.84,188.36,188.28,2.96]
[1755395505815,2.84,188.34,188.28,2.96]
[1755395506010,2.84,188.32,188.29,2.96]
[1755395506218,2.84,188.31,188.29,2.96]
[1755395506621,2.84,188.3,188.29,2.96]
[1755395507016,2.84,188.37,188.27,1.99473115]
[1755395507215,2.84,188.35,188.26,2.96]
[1755395507419,2.81,188.33,188.26,2.96]
[1755395507615,2.81,188.31,188.26,2.96]
[1755395507919,2.81,188.28,188.27,2.84]
[1755395508320,2.81,188.28,188.24,1.99473115]
[1755395508618,2.81,188.27,188.26,2.84]
[1755395509224,2.81,188.36,188.26,2.84]
[1755395509425,4.1002943,188.35,188.26,2.84]
[1755395509627,2.81,188.33,188.26,2.84]
[1755395509824,4.1002943,188.32,188.27,1.99473115]
[1755395510025,2.81,188.36,188.28,2.84]
[1755395510226,2.81,188.34,188.28,2.84]
[1755395510427,4.1002943,188.33,188.27,1.99473115]
[1755395510721,5.85415738,188.39,188.21,43.99473115]
[1755395510722,6.9102943,188.32,188.3,1.99473115]
[1755395510928,4.93,188.38,188.31,2.84]
[1755395511129,2.81,188.35,188.33,1.99473115]
[1755395511322,2.81,188.37,188.33,1.99473115]
[1755395511522,2.81,188.35,188.33,1.99473115]
[1755395511924,5.85415738,188.42,188.33,4.83473115]
[1755395512123,2.81,188.34,188.33,4.83473115]
[1755395514127,2.81,188.42,188.33,10.14103115]
[1755395514328,2.81,188.4,188.33,10.14103115]
[1755395514526,2.81,188.38,188.33,10.14103115]
[1755395514720,2.81,188.36,188.33,10.14103115]
[1755395514923,2.81,188.35,188.33,10.14103115]
[1755395515822,2.81,188.34,188.25,2.84]
[1755395516030,2.81,188.39,188.28,2.84]
[1755395516323,2.81,188.37,188.28,2.84]
[1755395516528,2.81,188.35,188.29,2.84]
[1755395516728,2.81,188.33,188.3,2.84]
[1755395517130,4.93,188.33,188.3,2.84]
[1755395517332,2.81,188.32,188.3,2.84]
[1755395518231,2.12,188.33,188.3,2.84]
[1755395518232,2.81,188.31,188.3,2.84]
[1755395519932,2.81,188.3,188.23,173.7]
[1755395520130,2.81,188.29,188.27,2.84]
[1755395520633,2.81,188.37,188.27,2.84]
[1755395520840,2.81,188.35,188.27,2.84]
[1755395521033,2.81,188.33,188.27,2.84]
[1755395521535,2.81,188.33,188.27,5.3077]
[1755395521732,2.81,188.33,188.29,2.84]
[1755395522032,4.93,188.33,188.29,2.84]
[1755395522340,6.90933764,188.32,188.26,8.1482]
[1755395522535,6.90947906,188.31,188.26,4.83473115]
[1755395522736,2.12,188.31,188.26,1.99473115]
[1755395523035,4.93,188.3,188.26,1.99473115]
[1755395523241,2.81,188.29,188.26,1.99473115]
[1755395523440,2.81,188.29,188.26,4.83473115]
[1755395523642,2.81,188.28,188.27,2.84]
[1755395525136,8.66415738,188.37,188.26,1.99473115]
[1755395525338,17.21805008,188.36,188.24,2.84]
[1755395525642,2.81,188.34,188.21,4.83473115]
[1755395525850,2.81,188.31,188.19,2.84]
[1755395526041,4.10179884,188.3,188.19,2.84]
[1755395526245,2.81,188.28,188.19,8.1502]
[1755395526439,4.10179884,188.27,188.19,8.1502]
[1755395526744,2.81,188.25,188.19,8.1502]
[1755395527039,4.15555843,188.24,188.18,1.99473115]
[1755395527244,2.81,188.23,188.18,4.83473115]
[1755395527448,2.81,188.23,188.19,2.84]
[1755395528042,2.81,188.21,188.19,8.15]
[1755395528242,2.81,188.21,188.19,2.84]
[1755395528746,2.81,188.28,188.19,2.84]
[1755395528945,2.81,188.26,188.19,2.84]
[1755395529137,2.81,188.24,188.19,2.84]
[1755395529336,2.81,188.24,188.2,5.3099]
[1755395529741,2.81,188.22,188.19,2.84]
[1755395529942,1.99473115,188.29,188.2,5.3098]
[1755395529943,2.81,188.21,188.2,5.3098]
[1755395530746,2.81,188.21,188.19,2.84]
[1755395530949,2.81,188.28,188.19,8.1502]
[1755395531251,2.81,188.26,188.17,2.84]
[1755395531439,2.81,188.24,188.11,4.83473115]
[1755395531638,2.81,188.22,188.12,2.84]
[1755395531840,4.15267309,188.23,188.12,2.84]
[1755395531841,2.81,188.2,188.16,5.311]
[1755395532048,2.81,188.18,188.14,2.84]
[1755395532446,2.81,188.18,188.15,2.84]
[1755395532644,2.81,188.17,188.15,2.84]
[1755395532854,2.12,188.18,188.07,131.66]
[1755395532855,2.81,188.15,188.13,2.84]
[1755395533054,2.81,188.14,188.13,2.84]
[1755395533852,2.81,188.16,188.13,2.84]
[1755395534052,2.81,188.15,188.14,2.84]
[1755395535249,2.81,188.25,188.14,2.84]
[1755395535448,2.81,188.23,188.14,2.84]
[1755395535643,2.81,188.21,188.14,2.84]
[1755395535850,1.99473115,188.26,188.12,1.99473115]
[1755395535851,2.81,188.19,188.12,1.99473115]
[1755395536050,2.81,188.19,188.13,2.84]
[1755395537350,2.81,188.19,188.15,2.97]
[1755395537551,2.96,188.17,188.15,2.97]
[1755395537751,2.96,188.17,188.16,2.97]
[1755395537948,2.96,188.25,188.16,2.97]
[1755395538149,2.96,188.23,188.15,1.99473115]
[1755395538348,4.13787106,188.22,188.15,1.99473115]
[1755395538549,7.09787106,188.21,188.15,1.99473115]
[1755395538749,4.13787106,188.2,188.15,1.99473115]
[1755395538954,2.96,188.19,188.16,2.97]
[1755395539154,2.96,188.18,188.16,2.97]
[1755395539355,2.96,188.17,188.16,2.97]
[1755395540854,2.96,188.16,188.15,4.96473115]
[1755395541049,2.96,188.16,188.15,1.99473115]
[1755395543559,2.96,188.16,188.13,2.97]
[1755395544160,2.96,188.16,188.13,8.2819]
[1755395544356,2.96,188.15,188.13,2.97]
[1755395544655,2.96,188.15,188.14,2.97]
[1755395545163,2.96,188.15,188.14,8.2816]
[1755395545562,1.99473115,188.26,188.12,1.99473115]
[1755395545762,2.96,188.24,188.12,7.30693115]
[1755395546062,2.96,188.22,188.12,4.96473115]
[1755395546359,2.96,188.2,188.13,2.97]
[1755395547063,4.13445206,188.19,188.13,8.2818]
[1755395547265,2.96,188.18,188.13,8.2818]
[1755395548662,2.12,188.17,188.12,7.30693115]
[1755395548966,2.96,188.15,188.07,4.96473115]
[1755395549161,2.96,188.15,188.09,5.313]
[1755395549457,2.96,188.13,188.09,5.313]
[1755395549664,2.96,188.13,188.09,8.283]
[1755395549858,2.96,188.12,188.1,5.3128]
[1755395550060,2.96,188.11,188.1,8.2828]
[1755395551665,2.96,188.11,188.09,8.2831]
[1755395552262,2.96,188.11,188.1,2.97]
[1755395555072,2.96,188.19,188.1,2.97]
[1755395555270,2.96,188.19,188.11,2.97]
[1755395555271,2.96,188.17,188.11,2.97]
[1755395556171,2.96,188.17,188.12,5.3122]
[1755395557470,2.96,188.17,188.13,5.3119]
[1755395558477,2.96,188.17,188.14,5.3117]
[1755395558675,2.96,188.15,188.14,5.3117]
[1755395558876,2.96,188.15,188.11,2.97]
[1755395559072,2.96,188.13,188.12,5.3122]
[1755395559270,2.96,188.13,188.12,8.2822]
[1755395559465,5.08,188.13,188.12,8.2822]
[1755395560169,2.96,188.22,188.11,2.97]
[1755395560472,2.96,188.2,188.11,2.97]
[1755395560774,2.96,188.18,188.11,2.97]
[1755395561170,2.96,188.18,188.14,5.3115]
[1755395561371,2.12,188.17,188.14,5.3115]
[1755395561572,2.96,188.22,188.14,5.3115]
[1755395561874,2.96,188.2,188.14,5.3115]
[1755395562075,2.96,188.18,188.14,8.2815]
[1755395562379,2.96,188.16,188.14,8.2815]
[1755395562569,2.96,188.16,188.13,5.3119]
[1755395562876,2.96,188.14,188.1,1.99473115]
[1755395563174,2.96,188.14,188.11,8.2823]
[1755395563576,2.96,188.14,188.1,1.99473115]
[1755395563979,2.96,188.12,188.1,1.99473115]
[1755395564276,2.96,188.11,188.1,2.97]
[1755395565271,2.96,188.13,188.1,2.97]
[1755395565472,2.96,188.12,188.11,2.97]
[1755395566772,2.96,188.12,188.09,5.313]
[1755395566973,2.96,188.12,188.09,8.283]
[1755395567180,5.85415738,188.19,188.09,5.313]
[1755395567378,3.08,188.11,188.1,2.98]
[1755395567776,3.08,188.11,188.1,8.2928]
[1755395568978,3.08,188.19,188.12,2.98]
[1755395569183,4.15010694,188.18,188.13,1.99473115]
[1755395569382,3.08,188.16,188.15,2.98]
[1755395569578,7.23010694,188.16,188.15,2.98]
[1755395569777,6.27010694,188.16,188.13,1.99473115]
[1755395569982,6.27010694,188.16,188.14,2.98]
[1755395569983,7.23010694,188.15,188.14,2.98]
[1755395570482,4.15010694,188.15,188.14,2.98]
[1755395572385,4.15010694,188.15,188.14,8.2917]
[1755395574387,7.23010694,188.15,188.14,8.2917]
[1755395577686,3.08,188.15,188.14,8.2917]
[1755395578087,3.08,188.22,188.14,2.98]
[1755395578288,3.08,188.2,188.14,2.98]
[1755395578490,4.16691008,188.19,188.14,2.98]
[1755395578687,7.24691008,188.18,188.16,5.3109]
[1755395578886,3.08,188.18,188.17,2.98]
[1755395579094,7.24690811,188.18,188.17,2.98]
[1755395579789,4.16690811,188.18,188.17,5.3109]
[1755395579989,7.24690811,188.18,188.17,8.2909]
[1755395580391,3.08,188.2,188.18,5.3106]
[1755395580591,3.08,188.19,188.18,8.2906]
[1755395582597,3.08,188.19,188.17,5.3108]
[1755395585398,3.08,188.19,188.18,5.3106]
[1755395586702,3.08,188.19,188.17,5.3108]
[1755395587297,3.08,188.19,188.16,1.99473115]
[1755395587503,3.08,188.17,188.1,4.97473115]
[1755395587703,4.16235684,188.16,188.1,4.97473115]
[1755395587899,4.16235684,188.15,188.1,4.97473115]
[1755395588097,3.08,188.14,188.1,4.97473115]
[1755395588300,3.08,188.14,188.11,2.98]
[1755395588696,3.08,188.14,188.13,5.312]
[1755395588901,5.2,188.14,188.13,5.312]
[1755395589101,2.12,188.14,188.1,4.97473115]
[1755395589404,3.08,188.13,188.11,2.98]
[1755395589601,3.08,188.12,188.11,8.2926]
[1755395591509,5.2,188.14,188.13,8.292]
[1755395592105,5.2,188.14,188.13,5.312]
[1755395601208,2.12,188.14,188.11,5.3125]
[1755395601407,2.88,188.13,188.11,5.3125]
[1755395602116,2.88,188.13,188.12,8.2923]
[1755395602617,2.88,188.13,188.12,5.3123]
[1755395604612,5.0,188.13,188.08,1.99473115]
[1755395604818,2.88,188.12,188.08,4.97473115]
[1755395605316,2.88,188.12,188.09,8.293]
[1755395605518,2.88,188.12,188.09,2.98]
[1755395606113,5.0,188.12,188.09,2.98]
[1755395606314,2.88,188.11,188.09,2.98]
[1755395606508,2.88,188.1,188.09,8.2932]
[1755395607421,2.88,188.19,188.11,5.3127]
[1755395607607,2.88,188.17,188.11,5.3127]
[1755395607811,2.88,188.15,188.11,8.2927]
[1755395608116,2.88,188.13,188.11,8.2927]
[1755395609319,2.88,188.13,188.11,5.3127]
[1755395613018,2.88,188.13,188.1,5.3129]
[1755395613216,2.88,188.11,188.08,1.99473115]
[1755395613422,2.88,188.09,188.06,2.98]
[1755395613625,2.88,188.07,188.06,8.2941]
[1755395614927,2.88,188.07,188.06,5.3141]
[1755395616020,2.88,188.07,188.05,5.3143]
[1755395617126,2.88,188.07,188.06,5.3141]
[1755395618021,2.88,188.06,188.02,2.98]
[1755395618526,2.88,188.04,188.02,2.98]
[1755395618723,2.88,188.04,188.02,5.3149]
[1755395619125,2.88,188.04,188.01,4.97473115]
[1755395619429,2.88,188.04,188.02,5.3152]
[1755395620522,1.99473115,188.12,187.96,2.98]
[1755395620726,1.99473115,188.12,188.01,2.98]
[1755395620727,2.88,188.1,188.01,2.98]
[1755395620920,2.88,188.08,188.01,2.98]
[1755395621117,2.88,188.06,188.02,5.3151]
[1755395621327,2.88,188.06,188.01,2.98]
[1755395621623,2.12,188.05,188.0,4.97473115]
[1755395621828,2.88,188.04,188.02,5.315]
[1755395622030,2.88,188.04,188.01,2.98]
[1755395622826,2.12,188.04,188.03,5.3149]
[1755395623025,2.88,188.06,188.03,2.98]
[1755395623226,2.88,188.05,188.03,2.98]
[1755395623534,2.88,188.05,188.0,1.99473115]
[1755395623730,2.88,188.05,188.04,2.98]
[1755395623929,5.0,188.05,188.04,2.98]
[1755395624329,5.0,188.05,188.04,8.2946]
[1755395624929,2.88,188.05,188.04,8.2946]
[1755395633643,7.84888853,188.15,188.07,5.3137]
[1755395633831,2.98,188.13,188.06,4.97473115]
[1755395634030,2.98,188.11,188.07,2.98]
[1755395634636,6.30232715,188.1,188.06,1.99473115]
[1755395634836,2.98,188.09,188.06,1.99473115]
[1755395635042,2.98,188.09,188.07,5.3138]
[1755395635241,2.98,188.09,188.07,2.98]
[1755395636043,2.98,188.09,188.08,5.3136]
[1755395640650,2.98,188.09,188.08,8.2936]
[1755395641548,2.98,188.13,188.1,5.3128]
[1755395641751,2.98,188.11,188.1,2.98]
[1755395642351,7.16550246,188.11,188.1,2.98]
[1755395642952,7.16550246,188.11,188.1,5.313]
[1755395643150,2.98,188.11,188.1,5.313]
[1755395645351,2.98,188.1,188.06,1.99473115]
[1755395645557,2.98,188.08,188.06,1.99473115]
[1755395646454,2.98,188.08,188.07,5.3138]
[1755395646657,7.16901434,188.08,188.07,5.3138]
[1755395647352,2.98,188.08,188.06,1.99473115]
[1755395647950,2.98,188.08,188.06,7.30873115]
[1755395649360,4.191915,188.07,188.06,7.30873115]
[1755395649655,7.171915,188.07,188.06,7.30873115]
[1755395650057,2.98,188.06,188.05,5.3144]
[1755395651160,7.17257622,188.06,188.05,5.3144]
[1755395654157,6.31257622,188.06,188.03,1.99473115]
[1755395654359,7.17477287,188.05,188.03,1.99473115]
[1755395654557,2.98,188.05,188.01,134.2]
[1755395654757,2.12,188.05,188.02,1.27678126]
[1755395654956,2.98,188.03,188.02,6.59198126]
[1755395656661,2.98,188.03,188.02,8.2952]
[1755395658057,2.98,188.03,188.02,8.2252]
[1755395658462,5.1,188.03,188.02,5.3152]
[1755395658962,3.08,188.02,188.01,5.3155]
[1755395659158,9.39747441,188.02,188.01,5.3155]
[1755395660458,5.85415738,188.1,188.0,133.17484556]
[1755395660665,3.08,188.07,188.04,2.91]
[1755395660963,4.19511569,188.06,188.04,2.91]
[1755395661160,3.08,188.07,188.06,8.2241]
[1755395661361,9.39690932,188.07,188.06,8.2241]
[1755395662368,4.19690932,188.07,188.06,10.21894556]
[1755395662664,3.08,188.09,188.08,8.2236]
[1755395662864,5.2,188.09,188.08,8.2236]
[1755395663067,5.2,188.09,188.08,5.3136]
[1755395664867,3.08,188.08,188.07,8.2238]
[1755395667369,2.12,188.09,188.08,5.3136]
[1755395667670,5.2,188.09,188.08,8.2236]
[1755395669176,2.12,188.09,188.08,8.2236]
[1755395669369,3.08,188.11,188.1,8.223]
[1755395669568,5.2,188.11,188.1,10.21784556]
[1755395671778,5.2,188.11,188.1,7.30784556]
[1755395674382,5.2,188.11,188.1,10.21784556]
[1755395674586,3.08,188.16,188.1,1.99484556]
[1755395674776,3.08,188.15,188.14,2.91]
[1755395674977,5.85415738,188.22,188.14,2.91]
[1755395674978,3.08,188.17,188.14,2.91]
[1755395675170,3.08,188.17,188.1,175.07484556]
[1755395675171,3.08,188.17,188.16,4.90484556]
[1755395675471,3.08,188.17,188.16,10.21614556]
[1755395675679,5.2,188.17,188.16,10.21614556]
[1755395676077,5.85415738,188.26,188.18,5.3107]
[1755395676380,5.85415738,188.26,188.18,8.2207]
[1755395676381,3.08,188.19,188.18,8.2207]
[1755395676778,5.2,188.19,188.18,5.3107]
[1755395680186,3.08,188.18,188.17,5.311]
[1755395680884,5.2,188.18,188.16,1.99484556]
[1755395681086,3.08,188.16,188.13,1.99484556]
[1755395681483,3.08,188.14,188.13,7.30694556]
[1755395684291,3.08,188.14,188.13,10.21694556]
[1755395685589,3.08,188.16,188.15,5.3116]
[1755395687396,3.08,188.16,188.15,8.2216]
[1755395687594,6.77912349,188.27,188.18,5.3107]
[1755395687795,6.11311686,188.26,188.17,1.99484556]
[1755395687985,3.99311686,188.25,188.17,1.99484556]
[1755395688189,2.96,188.23,188.17,1.99484556]
[1755395688392,3.99311686,188.22,188.17,1.99484556]
[1755395688591,2.96,188.2,188.18,5.3107]
[1755395688994,5.08,188.19,188.18,5.3107]
[1755395689194,2.96,188.19,188.18,5.3107]
[1755395689398,5.08,188.19,188.18,5.3107]
[1755395692797,2.96,188.18,188.17,5.311]
[1755395692998,5.08,188.18,188.14,1.99484556]
[1755395693193,2.96,188.17,188.14,4.90484556]
[1755395693387,2.96,188.17,188.15,5.3116]
[1755395693588,2.96,188.17,188.14,1.99484556]
[1755395694491,2.96,188.17,188.14,7.30664556]
[1755395695996,2.96,188.15,188.13,5.3121]
[1755395698100,2.96,188.13,188.12,5.3124]
[1755395698500,5.08,188.13,188.12,5.3124]
[1755395698909,2.96,188.12,188.11,5.3127]
[1755395699111,2.96,188.12,188.11,8.2227]
[1755395699503,1.99484556,188.23,188.12,2.91]
[1755395699703,2.96,188.21,188.14,1.99484556]
[1755395700002,2.96,188.19,188.16,2.91]
[1755395700196,2.96,188.19,188.14,1.99484556]
[1755395700400,2.96,188.19,188.17,2.91]
[1755395700609,5.08,188.18,188.17,2.91]
[1755395700801,5.08,188.18,188.14,1.99484556]
[1755395700802,2.96,188.18,188.14,1.99484556]
[1755395701006,5.08,188.18,188.16,8.2213]
[1755395701206,2.96,188.17,188.16,8.2213]
[1755395704004,2.96,188.17,188.16,5.3113]
[1755395704609,2.96,188.17,188.16,8.2213]
[1755395706709,2.12,188.18,188.17,5.311]
[1755395706906,2.96,188.21,188.18,2.91]
[1755395707106,2.96,188.2,188.19,2.91]
[1755395707612,2.96,188.2,188.19,5.3105]
[1755395710212,5.08,188.2,188.19,5.3105]
[1755395713715,2.96,188.19,188.14,1.99484556]
[1755395713912,2.96,188.17,188.1,2.91]
[1755395714215,2.96,188.15,188.08,4.90484556]
[1755395714411,2.96,188.15,188.1,5.3129]
[1755395714713,2.96,188.13,188.08,1.99484556]
[1755395714907,2.96,188.13,188.09,2.91]
[1755395715104,5.08,188.13,188.09,2.91]
[1755395715312,2.96,188.12,188.09,2.91]
[1755395715912,2.96,188.11,188.1,5.313]
[1755395716112,2.96,188.11,188.1,8.223]